bitfinex/quotes_ETHUSD_20241119
["timestamp","ask_amount","ask_price","bid_price","bid_amount"]
[1731982849364,0.06225045,3157.9,3157.3,3.16724]
[1731982849709,0.06225045,3157.9,3157.4,0.3164]
[1731982850025,0.06225045,3157.9,3157.8,3.48316]
[1731982850163,0.8261,3158.4,3157.8,3.48316]
[1731982850164,0.8261,3158.4,3158.1,0.3164]
[1731982850691,0.06232193,3158.3,3158.1,0.3164]
[1731982851202,0.06232193,3158.3,3157.8,0.3164]
[1731982851406,3.29203551,3158.3,3157.8,0.3164]
[1731982851609,0.12574551,3158.3,3157.8,0.3164]
[1731982853083,3.29200551,3158.3,3157.8,0.3164]
[1731982853285,3.29200551,3158.3,3157.9,0.3164]
[1731982853488,3.16648,3158.1,3157.9,0.3164]
[1731982853781,0.06021589,3158.0,3157.9,0.3164]
[1731982854382,0.06021589,3158.0,3157.5,3.16704]
[1731982854383,0.06021589,3158.0,3157.6,0.3164]
[1731982855224,0.06021589,3158.0,3157.9,3.48306]
[1731982855436,0.8261,3158.4,3157.9,3.48306]
[1731982855575,0.0601809,3158.0,3157.9,3.48306]
[1731982855778,0.8261,3158.4,3157.9,3.48306]
[1731982855978,0.06025502,3158.3,3157.9,3.48306]
[1731982856949,0.06025502,3158.3,3158.1,0.3164]
[1731982858308,0.06025502,3158.3,3158.2,0.3164]
[1731982859555,0.06025502,3158.3,3158.0,0.3164]
[1731982860064,3.22657502,3158.3,3158.0,0.3164]
[1731982860208,3.16646,3158.1,3158.0,0.3164]
[1731982860413,3.29012806,3158.1,3157.3,0.3164]
[1731982860749,3.16657,3158.0,3157.5,0.3164]
[1731982860922,3.22670448,3158.1,3157.5,0.3164]
[1731982861130,0.05819515,3157.9,3157.7,0.3164]
[1731982861324,0.05821731,3158.0,3157.7,0.3164]
[1731982861649,3.99232,3158.4,3157.7,3.48326]
[1731982861847,0.05818994,3157.9,3157.7,0.3164]
[1731982862011,3.16627,3158.3,3157.7,0.3164]
[1731982862357,0.05816778,3157.8,3157.5,0.3164]
[1731982862521,3.16652,3158.1,3157.5,0.3164]
[1731982862722,0.05814563,3157.7,3157.5,3.48345]
[1731982862916,3.16652,3158.1,3157.6,3.48336]
[1731982863114,3.22977358,3158.3,3157.6,3.48336]
[1731982863356,3.16636,3158.2,3157.6,0.3164]
[1731982863515,0.06342358,3158.1,3157.6,3.48335]
[1731982863887,0.06342358,3158.1,3157.8,0.3164]
[1731982864687,0.43737559,3158.1,3157.8,0.3164]
[1731982864907,3.16666,3157.9,3157.4,0.3164]
[1731982865253,3.16682,3157.8,3157.4,0.3164]
[1731982865450,3.16637,3158.2,3157.6,3.4833]
[1731982865791,3.16637,3158.2,3157.6,0.3164]
[1731982865943,3.16657,3158.0,3157.6,0.3164]
[1731982866383,3.16682,3157.8,3157.3,0.3164]
[1731982866757,3.16679,3157.8,3157.3,0.3164]
[1731982867159,3.1666,3158.0,3157.5,0.3164]
[1731982867359,3.16678,3157.8,3157.5,0.3164]
[1731982867574,3.1666,3158.0,3157.5,0.3164]
[1731982868093,0.7602,3159.0,3158.4,3.48252]
[1731982868249,3.16541,3159.2,3158.7,0.3164]
[1731982868444,0.316541,3159.1,3158.9,0.3164]
[1731982868648,3.16529,3159.3,3158.9,0.3164]
[1731982868849,0.42563455,3159.2,3158.9,0.3164]
[1731982869102,3.16537,3159.2,3158.9,0.3164]
[1731982869390,1.09105548,3159.4,3158.9,0.3164]
[1731982869595,3.16544,3159.2,3158.6,3.48235]
[1731982869795,3.16547,3159.1,3158.6,0.3164]
[1731982869950,3.16558,3159.0,3158.6,0.3164]
[1731982871506,3.798682,3159.0,3158.6,0.3164]
[1731982871682,3.16585,3158.7,3158.6,0.3164]
[1731982872579,3.16572,3158.9,3157.9,0.3164]
[1731982872777,3.16642,3158.2,3157.9,0.3164]
[1731982872981,3.16653,3158.1,3157.9,0.3164]
[1731982873629,0.06342358,3158.6,3158.0,0.3164]
[1731982873797,3.16646,3158.1,3158.0,0.3164]
[1731982874123,3.483106,3158.1,3158.0,0.3164]
[1731982874685,3.16662,3158.0,3157.4,0.3164]
[1731982875301,3.16706,3157.5,3157.4,0.3164]
[1731982875688,3.16706,3157.5,3157.0,0.3164]
[1731982876285,3.16698,3157.6,3157.0,0.3164]
[1731982876891,3.16707,3157.5,3157.0,0.3164]
[1731982877923,0.7502,3157.9,3157.0,3.48394]
[1731982878082,3.16697,3157.6,3157.0,3.48394]
[1731982878290,3.16713,3157.5,3157.1,0.3164]
[1731982879348,3.06713,3157.5,3157.2,0.3164]
[1731982880128,3.16687,3157.7,3157.2,0.3164]
[1731982880129,3.16719,3157.4,3157.2,0.3164]
[1731982880437,3.16707,3157.5,3157.3,0.3164]
[1731982881069,3.1669,3157.7,3157.3,0.3164]
[1731982881230,3.16697,3157.6,3157.1,0.3164]
[1731982881430,0.7502,3157.9,3157.3,0.3164]
[1731982881431,3.16672,3157.9,3157.3,0.3164]
[1731982881655,3.1666,3158.0,3157.5,0.3164]
[1731982881828,3.16642,3158.2,3157.7,0.3164]
[1731982882042,3.16642,3158.2,3157.7,3.48325]
[1731982882248,3.16599,3158.6,3158.0,0.3164]
[1731982882564,3.16599,3158.6,3158.2,0.3164]
[1731982882766,0.04675634,3158.5,3158.2,0.3164]
[1731982883381,0.04675634,3158.5,3158.1,0.3164]
[1731982883928,3.16636,3158.2,3158.1,0.3164]
[1731982884372,3.16636,3158.2,3156.8,3.17768]
[1731982884373,3.16656,3158.0,3157.6,0.3164]
[1731982884575,3.16666,3157.9,3157.6,0.3164]
[1731982884762,3.16686,3157.7,3157.6,0.3164]
[1731982885337,3.21343914,3157.7,3157.0,0.3164]
[1731982885531,3.21343914,3157.7,3157.2,0.3164]
[1731982886076,3.16714,3157.5,3157.2,0.3164]
[1731982886472,0.04655698,3157.6,3157.1,0.3164]
[1731982886652,0.04651266,3157.4,3157.1,3.48385]
[1731982886977,0.04653482,3157.5,3157.1,3.48385]
[1731982887173,3.16686,3157.7,3157.1,3.48385]
[1731982887358,0.04651266,3157.4,3157.1,3.48385]
[1731982887558,3.16696,3157.6,3156.9,3.48398]
[1731982887765,0.0464905,3157.3,3156.9,3.876093]
[1731982888148,3.16707,3157.5,3156.9,3.876093]
[1731982888655,0.04651076,3157.4,3157.1,0.3164]
[1731982888836,3.16696,3157.6,3157.1,3.48386]
[1731982889038,0.0464886,3157.3,3157.1,0.3164]
[1731982889483,3.16696,3157.6,3157.1,0.3164]
[1731982889781,2.89722644,3157.6,3157.1,0.3164]
[1731982889982,0.04497705,3157.5,3157.1,0.3164]
[1731982891444,0.04497705,3157.5,3157.3,3.48365]
[1731982891640,0.04497705,3157.5,3157.3,0.3164]
[1731982891988,3.16677,3157.8,3157.3,0.3164]
[1731982892284,3.16706,3157.5,3157.3,0.3164]
[1731982892450,3.21191836,3157.7,3157.3,0.3164]
[1731982892640,0.04496188,3157.4,3157.3,0.3164]
[1731982892841,3.16689,3157.7,3157.3,0.3164]
[1731982893040,0.04496188,3157.4,3157.3,0.3164]
[1731982893275,3.16689,3157.7,3157.4,0.3164]
[1731982893477,3.16678,3157.8,3157.4,0.3164]
[1731982893775,0.0450062,3157.6,3157.4,0.3164]
[1731982894056,3.16667,3157.9,3157.4,0.3164]
[1731982894391,3.16677,3157.8,3157.4,0.3164]
[1731982894830,0.04502836,3157.7,3157.4,0.3164]
[1731982895329,0.0450062,3157.6,3157.4,3.48355]
[1731982895632,3.16667,3157.9,3157.3,3.48366]
[1731982896134,3.16667,3157.9,3157.3,0.3164]
[1731982896135,3.21184051,3157.8,3157.3,0.3164]
[1731982896335,3.21184051,3157.8,3157.6,0.3164]
[1731982896520,0.04505051,3157.8,3157.6,0.3164]
[1731982896689,3.9216,3158.1,3157.6,0.3164]
[1731982896690,3.16668,3157.9,3157.6,0.3164]
[1731982897029,0.04503556,3157.7,3157.6,0.3164]
[1731982897231,3.16668,3157.9,3157.6,0.3164]
[1731982897391,0.04503556,3157.7,3157.6,0.3164]
[1731982897595,3.16668,3157.9,3157.6,0.3164]
[1731982897806,3.16679,3157.8,3157.6,0.3164]
[1731982898035,3.16686,3157.7,3157.6,0.3164]
[1731982898352,0.04503556,3157.7,3157.4,0.3164]
[1731982898555,0.04503556,3157.7,3157.6,0.3164]
[1731982898854,3.16627,3158.3,3157.8,0.3164]
[1731982899154,3.49701144,3158.5,3157.9,0.3164]
[1731982899335,3.16589,3158.7,3158.1,0.3164]
[1731982899719,3.16606,3158.5,3158.1,0.3164]
[1731982900051,0.06342358,3158.4,3158.1,0.3164]
[1731982900350,3.16636,3158.2,3158.1,0.3164]
[1731982900740,3.86305158,3158.2,3158.1,0.3164]
[1731982900951,4.609528,3158.2,3158.1,0.3164]
[1731982901250,4.609528,3158.2,3157.6,0.3164]
[1731982901420,3.16671,3157.9,3157.6,0.3164]
[1731982901754,3.23013358,3157.9,3157.8,0.3164]
[1731982902046,3.16671,3157.9,3157.8,0.3164]
[1731982902461,3.23013358,3157.9,3157.8,0.3164]
[1731982902604,6.33408,3157.6,3157.2,0.3164]
[1731982903035,3.16703,3157.6,3157.2,0.3164]
[1731982903810,0.04247355,3157.5,3157.2,0.3164]
[1731982904554,3.16718,3157.4,3156.9,0.3164]
[1731982904857,3.20963139,3157.4,3156.9,0.3164]
[1731982905353,0.04245139,3157.4,3157.1,0.3164]
[1731982905552,3.16703,3157.6,3157.1,0.3164]
[1731982905736,0.04242923,3157.3,3157.1,0.3164]
[1731982905954,3.16703,3157.6,3157.1,0.3164]
[1731982906117,0.04240706,3157.2,3157.1,0.3164]
[1731982906311,3.16703,3157.6,3157.1,0.3164]
[1731982906507,0.04240706,3157.2,3157.1,0.7341331]
[1731982906749,3.16678,3157.8,3157.4,0.3164]
[1731982907409,6.33324,3158.0,3157.4,0.3164]
[1731982907614,3.1666,3158.0,3157.4,0.3164]
[1731982908019,0.8099,3158.2,3157.2,0.3164]
[1731982908243,3.16686,3157.7,3157.2,0.67491931]
[1731982908557,0.06342358,3158.1,3157.2,0.3164]
[1731982908558,3.16705,3157.6,3157.2,0.3164]
[1731982909086,3.16713,3157.5,3157.2,0.3164]
[1731982909284,3.16713,3157.5,3156.9,3.16762]
[1731982909285,3.16713,3157.5,3157.3,0.3164]
[1731982909880,3.16705,3157.6,3157.3,0.3164]
[1731982910066,0.8099,3158.2,3157.3,0.3164]
[1731982910274,0.8099,3158.2,3157.4,0.3164]
[1731982910581,3.16681,3157.8,3157.4,0.3164]
[1731982911142,3.16681,3157.8,3157.3,0.3164]
[1731982911546,3.16682,3157.8,3157.3,0.3164]
[1731982912301,3.16697,3157.6,3157.1,0.3164]
[1731982912987,3.16712,3157.5,3157.1,0.3164]
[1731982913172,3.16712,3157.5,3157.0,0.3164]
[1731982913345,3.16697,3157.6,3157.0,3.4839]
[1731982913688,3.16717,3157.4,3157.0,0.3164]
[1731982913887,3.16697,3157.6,3157.0,3.4839]
[1731982914094,3.16712,3157.5,3157.0,3.48394]
[1731982914302,3.16698,3157.6,3157.0,0.3164]
[1731982914507,3.16681,3157.8,3157.2,0.3164]
[1731982914796,3.16681,3157.8,3157.2,3.48375]
[1731982915002,3.16671,3157.9,3157.4,0.3164]
[1731982915301,3.16664,3158.0,3157.4,3.4835]
[1731982915603,3.16664,3158.0,3157.4,4.315]
[1731982916104,6.33329,3158.0,3157.4,4.315]
[1731982916836,3.16668,3157.9,3157.4,4.315]
[1731982917334,0.633332,3157.9,3157.5,0.3164]
[1731982917493,3.16696,3157.6,3157.5,0.3164]
[1731982918316,3.16696,3157.6,3157.1,0.3164]
[1731982918490,3.2094576,3157.6,3157.5,0.3164]
[1731982919394,3.2094576,3157.6,3157.1,0.3164]
[1731982919595,3.16711,3157.5,3157.1,0.3164]
[1731982920008,0.04245329,3157.4,3157.1,0.3164]
[1731982920207,3.20963329,3157.4,3157.1,0.3164]
[1731982920413,3.20963329,3157.4,3157.3,0.3164]
[1731982920414,6.37688329,3157.4,3157.3,0.3164]
[1731982920624,6.69784662,3157.4,3157.3,0.3164]
[1731982921332,3.16755,3157.1,3156.9,0.3164]
[1731982921692,3.20990984,3157.0,3156.9,0.3164]
[1731982922322,3.20990984,3157.0,3156.7,0.3164]
[1731982922535,0.04234984,3157.0,3156.7,0.3164]
[1731982922694,3.23085358,3157.2,3156.7,0.3164]
[1731982923043,0.04232768,3156.9,3156.7,0.3164]
[1731982923348,0.04229031,3156.8,3156.7,0.3164]
[1731982923494,6.33505,3157.1,3156.7,0.3164]
[1731982923695,0.04228727,3156.8,3156.7,0.3164]
[1731982924193,3.16749,3157.1,3156.7,0.3164]
[1731982924387,0.04228727,3156.8,3156.7,0.3164]
[1731982924608,3.16749,3157.1,3156.7,0.3164]
[1731982924886,0.04228727,3156.8,3156.7,0.3164]
[1731982925039,3.16758,3157.0,3156.7,0.3164]
[1731982925243,3.2099116,3157.0,3156.8,0.3164]
[1731982926267,0.0423316,3157.0,3156.8,0.3164]
[1731982926462,0.817,3157.5,3156.8,0.3164]
[1731982926781,3.167,3157.6,3157.0,0.3164]
[1731982926974,3.20958744,3157.4,3157.0,0.3164]
[1731982927185,3.16719,3157.4,3157.0,0.3164]
[1731982927394,0.04237528,3157.3,3157.0,0.3164]
[1731982927568,3.20963528,3157.3,3157.0,0.3164]
[1731982928210,0.04237528,3157.3,3157.0,0.3164]
[1731982928693,0.04237528,3157.3,3157.1,0.3164]
[1731982928694,3.16736,3157.2,3157.1,0.3164]
[1731982928899,3.93426,3157.2,3157.1,0.3164]
[1731982929207,0.04234612,3157.2,3157.1,0.3164]
[1731982929562,0.7855,3157.6,3157.3,0.3164]
[1731982929767,0.06342358,3157.7,3157.3,0.3164]
[1731982930411,3.16698,3157.6,3157.3,0.3164]
[1731982930801,0.06342358,3157.7,3157.2,0.3164]
[1731982931127,3.95208,3158.0,3157.4,0.3164]
[1731982931289,3.95208,3158.0,3157.4,3.48355]
[1731982931991,3.16667,3157.9,3157.5,0.3164]
[1731982932415,3.16677,3157.8,3157.5,0.3164]
[1731982932984,3.16677,3157.8,3157.3,0.3164]
[1731982933287,3.16677,3157.8,3157.3,0.664768]
[1731982933727,0.04106158,3157.7,3157.3,3.832008]
[1731982933883,0.04106158,3157.7,3157.3,0.664768]
[1731982934238,0.04103943,3157.6,3157.3,0.664768]
[1731982934402,0.04103943,3157.6,3157.5,0.3164]
[1731982934608,3.16677,3157.8,3157.5,0.3164]
[1731982935124,0.04107755,3157.7,3157.5,0.3164]
[1731982935326,3.16677,3157.8,3157.3,0.3164]
[1731982935521,0.04105539,3157.6,3157.3,0.3164]
[1731982935818,3.23031358,3157.7,3157.3,0.3164]
[1731982936018,0.04103285,3157.5,3157.3,0.3164]
[1731982936338,3.16676,3157.8,3157.3,0.3164]
[1731982936644,0.04101069,3157.4,3157.3,3.8953829]
[1731982936809,3.16666,3157.9,3157.5,0.3164]
[1731982937193,3.16677,3157.8,3157.5,0.3164]
[1731982937395,3.16679,3157.8,3157.5,0.3164]
[1731982937950,3.16662,3158.0,3157.4,0.3164]
[1731982938146,6.33327,3158.0,3157.4,0.3164]
[1731982938328,3.16662,3158.0,3157.4,3.48354]
[1731982938634,6.16639,3158.2,3157.6,0.3164]
[1731982938635,3.16647,3158.1,3157.6,0.3164]
[1731982938942,0.8157,3158.3,3157.8,0.3164]
[1731982938943,3.0,3158.3,3157.8,0.3164]
[1731982939284,3.1662,3158.4,3158.0,0.3164]
[1731982939848,3.16626,3158.3,3158.0,0.3164]
[1731982940043,3.16626,3158.3,3157.7,0.3164]
[1731982940351,3.16626,3158.3,3157.7,3.48323]
[1731982940897,3.16613,3158.5,3157.9,0.3164]
[1731982941066,3.16613,3158.5,3157.9,3.48302]
[1731982941589,3.0,3158.6,3158.3,0.3164]
[1731982942385,3.16597,3158.6,3158.3,0.3164]
[1731982942544,3.16616,3158.4,3158.3,0.3164]
[1731982942740,3.16627,3158.3,3158.0,0.3164]
[1731982942947,3.33093216,3158.7,3158.0,0.3164]
[1731982942948,3.16599,3158.6,3158.0,0.3164]
[1731982943172,3.16615,3158.5,3158.0,0.3164]
[1731982943555,3.16616,3158.4,3158.0,0.3164]
[1731982943897,6.49682216,3158.7,3158.0,0.3164]
[1731982944184,3.16586,3158.7,3158.0,3.5461987]
[1731982944385,3.16586,3158.7,3158.3,0.3164]
[1731982945597,3.16562,3159.0,3158.7,0.3164]
[1731982945946,0.797,3159.5,3158.7,0.3164]
[1731982946176,3.16555,3159.0,3158.7,0.3164]
[1731982946694,3.16543,3159.2,3158.7,0.3164]
[1731982946984,3.16546,3159.1,3158.7,0.3164]
[1731982947389,3.16526,3159.3,3158.7,0.3164]
[1731982947704,3.16526,3159.3,3158.6,0.7939]
[1731982947705,3.16504,3159.6,3159.0,0.3164]
[1731982947993,3.16504,3159.6,3159.0,3.48191]
[1731982948547,3.20397946,3159.5,3159.0,0.3164]
[1731982949158,3.1652,3159.4,3158.8,0.3164]
[1731982949358,3.16546,3159.1,3158.8,0.3164]
[1731982949595,0.67576527,3159.4,3158.8,0.3164]
[1731982949596,3.16542,3159.2,3158.8,0.3164]
[1731982949772,0.03877775,3159.0,3158.8,0.3164]
[1731982950091,3.16546,3159.1,3158.8,0.3164]
[1731982950247,0.03875561,3158.9,3158.8,0.3164]
[1731982950443,0.06342358,3159.1,3158.8,0.3164]
[1731982950668,3.798507,3159.2,3158.8,0.3164]
[1731982950866,0.03879989,3159.1,3159.0,0.3164]
[1731982951100,3.16516,3159.4,3159.0,0.3164]
[1731982951306,0.03883707,3159.3,3159.0,0.3164]
[1731982951507,3.20411707,3159.3,3159.0,0.3164]
[1731982952099,3.20411707,3159.3,3158.8,0.3164]
[1731982952308,3.16547,3159.1,3158.8,0.3164]
[1731982952512,0.03877076,3159.0,3158.8,0.3164]
[1731982952693,3.16528,3159.3,3158.8,0.3164]
[1731982952907,3.16554,3159.1,3158.8,0.3164]
[1731982953079,0.03881503,3159.2,3158.9,0.3164]
[1731982953282,3.481828,3159.3,3158.9,0.3164]
[1731982953283,3.1653,3159.3,3158.9,0.3164]
[1731982953572,0.03882202,3159.2,3158.9,0.3164]
[1731982953794,3.8299908,3159.3,3158.9,0.3164]
[1731982954002,0.03879989,3159.1,3158.9,0.3164]
[1731982954165,0.03879989,3159.1,3158.7,3.16584]
[1731982954166,3.8299908,3159.3,3159.0,0.3164]
[1731982954724,0.6646908,3159.3,3159.0,0.3164]
[1731982955021,3.16508,3159.5,3159.0,0.3164]
[1731982955217,3.16517,3159.4,3158.9,0.3164]
[1731982955394,3.798195,3159.4,3158.9,0.3164]
[1731982956181,3.798195,3159.4,3159.0,0.3164]
[1731982957509,3.798195,3159.4,3158.8,0.3164]
[1731982960888,3.16526,3159.3,3158.8,0.3164]
[1731982961087,3.16539,3159.2,3158.8,0.3164]
[1731982961492,3.16539,3159.2,3158.7,0.3164]
[1731982961693,3.16568,3158.9,3158.7,0.3164]
[1731982961893,3.22917358,3158.8,3158.7,0.3164]
[1731982962125,3.16575,3158.8,3158.7,0.3164]
[1731982962425,3.16599,3158.6,3158.2,0.3164]
[1731982962583,3.16586,3158.7,3158.2,0.3164]
[1731982962789,3.1658,3158.8,3158.2,3.48275]
[1731982963234,3.1658,3158.8,3158.2,0.3164]
[1731982963387,3.16588,3158.7,3158.2,0.3164]
[1731982963586,3.20460312,3158.7,3158.2,0.3164]
[1731982964226,0.03872312,3158.7,3158.4,0.3164]
[1731982964600,3.16567,3158.9,3158.4,0.3164]
[1731982964813,0.03869794,3158.6,3158.4,0.3164]
[1731982964992,3.16567,3158.9,3158.4,0.3164]
[1731982965193,0.03867769,3158.5,3158.4,0.3164]
[1731982965387,3.16578,3158.8,3158.4,0.54870469]
[1731982965615,0.03867769,3158.5,3158.2,0.3164]
[1731982965928,3.16578,3158.8,3158.4,0.3164]
[1731982966599,6.33163,3158.8,3158.4,0.3164]
[1731982966788,6.33163,3158.8,3158.2,0.3164]
[1731982967190,3.16578,3158.8,3158.2,3.48274]
[1731982967489,3.16552,3159.1,3158.6,0.3164]
[1731982967692,3.16552,3159.1,3158.8,0.3164]
[1731982967907,3.16556,3159.0,3158.8,0.3164]
[1731982968428,3.16552,3159.1,3158.8,0.3164]
[1731982968612,3.560612,3159.1,3158.5,0.3164]
[1731982968813,3.560612,3159.1,3158.4,3.16609]
[1731982968814,6.726142,3159.1,3158.7,0.3164]
[1731982969018,0.7854,3159.2,3158.7,0.3164]
[1731982969221,3.16509,3159.5,3158.9,0.3164]
[1731982969530,3.16525,3159.3,3158.9,0.3164]
[1731982970731,6.33059,3159.3,3158.9,0.3164]
[1731982970937,3.16525,3159.3,3158.9,0.3164]
[1731982971426,3.1651,3159.5,3158.9,0.3164]
[1731982971613,3.1651,3159.5,3158.9,3.48198]
[1731982972420,3.16519,3159.4,3158.9,0.3164]
[1731982972897,3.16528,3159.3,3158.9,0.3164]
[1731982973294,3.16553,3159.1,3158.9,0.3164]
[1731982973497,3.16553,3159.1,3158.8,0.7504]
[1731982973808,3.16553,3159.1,3158.9,0.3164]
[1731982974412,0.06342358,3159.0,3158.5,0.3164]
[1731982974630,6.33104,3159.1,3158.5,1.0991]
[1731982975133,6.33141,3158.9,3158.5,1.0991]
[1731982975336,3.16567,3158.9,3158.5,1.0991]
[1731982975499,6.33142,3158.9,3158.5,1.0991]
[1731982975701,3.16535,3159.2,3158.5,1.0991]
[1731982976019,3.16535,3159.2,3158.6,0.3164]
[1731982976020,3.16594,3158.7,3158.6,0.3164]
[1731982976904,3.16575,3158.9,3158.3,3.48259]
[1731982977106,3.1655,3159.1,3158.5,3.48245]
[1731982978619,0.03875045,3159.0,3158.5,3.48245]
[1731982979944,0.03743663,3158.9,3158.5,3.16605]
[1731982980249,2.88805045,3159.1,3158.6,0.3164]
[1731982980547,3.16546,3159.1,3158.6,0.3164]
[1731982980760,0.03747054,3159.0,3158.6,0.3164]
[1731982981763,6.33064,3159.3,3158.8,0.3164]
[1731982981916,0.03745068,3158.9,3158.8,0.3164]
[1731982982115,3.1653,3159.3,3158.8,0.3164]
[1731982982351,6.33022,3159.5,3158.8,3.48214]
[1731982982567,0.03751709,3159.2,3159.0,0.3164]
[1731982982864,3.16519,3159.4,3159.0,0.3164]
[1731982983156,3.16503,3159.6,3159.0,0.3164]
[1731982983369,3.16469,3159.9,3159.4,0.3164]
[1731982984532,3.16505,3159.5,3159.4,0.3164]
[1731982984860,3.16505,3159.5,3159.1,0.3164]
[1731982984861,3.16529,3159.3,3159.1,0.3164]
[1731982985012,6.3302,3159.5,3159.1,0.3164]
[1731982985218,3.16516,3159.4,3159.1,0.3164]
[1731982985914,3.16503,3159.6,3159.1,0.3164]
[1731982986141,1.99787284,3160.0,3159.1,3.8541023]
[1731982986142,3.16482,3159.8,3159.1,3.8541023]
[1731982986361,3.16474,3159.9,3159.3,0.3164]
[1731982986658,3.16478,3159.8,3159.3,0.3164]
[1731982987765,0.03635155,3159.7,3159.3,0.3164]
[1731982987916,6.32961,3159.8,3159.1,3.85395876]
[1731982988146,0.03636304,3159.7,3159.3,0.3164]
[1731982988506,3.16478,3159.8,3159.3,0.6885159]
[1731982988709,0.03634091,3159.6,3159.3,0.6885159]
[1731982988882,3.20123304,3159.7,3159.3,0.3164]
[1731982989203,4.39166284,3160.0,3159.3,0.6708994]
[1731982989392,4.39166284,3160.0,3159.7,0.3164]
[1731982989745,1.22707284,3160.0,3159.7,3.48117]
[1731982989945,1.22707284,3160.0,3159.9,0.3164]
[1731982990153,0.8963508,3160.0,3159.9,0.3164]
[1731982990972,0.8963508,3160.0,3159.9,3.48105]
[1731982991156,0.8963508,3160.0,3159.8,0.3164]
[1731982991357,0.8963508,3160.0,3158.9,2.74172745]
[1731982991358,3.165,3159.6,3159.3,0.51546]
[1731982991569,3.16493,3159.7,3159.4,0.3164]
[1731982991850,6.32941,3159.9,3159.4,0.3164]
[1731982992051,3.16469,3159.9,3159.4,0.3164]
[1731982992378,0.8963508,3160.0,3159.7,0.3164]
[1731982992575,0.8963508,3160.0,3159.9,0.3164]
[1731982993198,0.8963508,3160.0,3159.9,3.48105]
[1731982993353,0.8963508,3160.0,3159.9,0.3164]
[1731982993548,0.93284595,3160.0,3159.9,0.3164]
[1731982994155,0.93284595,3160.0,3159.7,0.3164]
[1731982994355,0.93284595,3160.0,3159.9,0.3164]
[1731982994657,0.03649515,3160.0,3159.9,0.3164]
[1731982994963,3.16421,3160.4,3159.9,0.3164]
[1731982995294,0.03649505,3160.0,3159.9,0.3164]
[1731982995496,3.16429,3160.3,3159.9,0.3164]
[1731982995997,0.03655678,3160.2,3159.9,0.3164]
[1731982996155,3.16429,3160.3,3159.9,0.747694]
[1731982996354,3.20099504,3160.1,3159.9,0.747694]
[1731982996601,3.16446,3160.1,3159.9,0.3164]
[1731982996904,0.03651292,3160.0,3159.9,0.3164]
[1731982997254,3.16435,3160.2,3159.9,0.3164]
[1731982997456,0.03651292,3160.0,3159.9,3.48105]
[1731982997655,3.16369,3160.9,3160.2,4.31237]
[1731982997894,3.16369,3160.9,3160.4,0.3164]
[1731982998064,0.03547962,3160.8,3160.4,3.48053]
[1731982998272,0.03547962,3160.8,3160.4,3.911767]
[1731982998598,3.16356,3161.0,3160.4,3.911767]
[1731982998918,0.1432941,3161.5,3161.2,0.3164]
[1731982999068,0.1432941,3161.5,3161.4,0.3164]
[1731982999501,0.1432941,3161.5,3161.4,4.38441666]
[1731983003933,0.1432941,3161.5,3161.4,4.31125]
[1731983004139,0.1432941,3161.5,3161.4,5.058691]
[1731983004295,0.1432941,3161.5,3161.4,5.12193979]
[1731983004984,0.17427009,3161.5,3161.4,5.12193979]
[1731983005178,0.1432941,3161.5,3161.4,5.12193979]
[1731983005395,0.1432941,3161.5,3161.4,1.895541]
[1731983005600,0.17427009,3161.5,3161.4,1.895541]
[1731983005818,0.1432941,3161.5,3161.4,1.895541]
[1731983006121,0.17323885,3161.5,3161.4,1.895541]
[1731983006322,0.17323885,3161.5,3161.4,4.31125]
[1731983006534,0.1432941,3161.5,3161.4,4.31125]
[1731983006683,0.17323885,3161.5,3161.4,4.31125]
[1731983007021,0.1432941,3161.5,3161.4,4.31125]
[1731983007336,0.1432941,3161.5,3161.4,5.04545221]
[1731983007481,0.1432941,3161.5,3161.4,1.88230221]
[1731983007682,0.1432941,3161.5,3161.4,0.8317]
[1731983007683,0.17323732,3161.5,3161.4,0.8317]
[1731983007995,0.17323732,3161.5,3161.1,1.0854]
[1731983009186,0.1432941,3161.5,3161.1,1.0854]
[1731983009513,0.02994564,3161.4,3161.2,0.43122084]
[1731983009830,3.16286,3161.7,3161.3,0.25985348]
[1731983010933,3.16286,3161.7,3161.2,0.20330696]
[1731983011112,3.16298,3161.6,3161.2,0.20330696]
[1731983011421,3.16269,3161.9,3161.4,0.20330696]
[1731983011625,3.16256,3162.0,3161.6,0.20330696]
[1731983011830,6.16243,3162.2,3161.6,0.20330696]
[1731983012001,3.16255,3162.1,3161.6,0.20330696]
[1731983012325,3.16256,3162.0,3161.6,0.20330696]
[1731983012626,3.16256,3162.0,3161.5,0.20330696]
[1731983014521,3.16243,3162.2,3161.5,3.36629696]
[1731983015334,3.16243,3162.2,3161.7,0.20330696]
[1731983016303,3.16245,3162.1,3161.7,0.20330696]
[1731983016730,1.15488011,3162.3,3161.7,0.20330696]
[1731983016883,3.16242,3162.2,3161.7,0.20330696]
[1731983017226,0.02910129,3162.1,3161.7,0.20330696]
[1731983018243,0.02910129,3162.1,3161.7,3.36615696]
[1731983018453,3.16235,3162.2,3161.7,0.93745766]
[1731983018587,0.0290792,3162.0,3161.7,0.20330696]
[1731983018785,3.16267,3161.9,3161.7,0.20330696]
[1731983019029,3.19173973,3161.9,3161.7,0.20330696]
[1731983019326,0.02906973,3161.9,3161.7,0.20330696]
[1731983019835,3.16255,3162.0,3161.6,0.44675862]
[1731983019836,0.02807979,3161.8,3161.6,0.44675862]
[1731983020054,2.87541973,3162.0,3161.6,0.44675862]
[1731983020334,0.03006182,3161.7,3161.6,0.38350696]
[1731983020632,3.16232,3162.3,3161.7,0.3164]
[1731983020941,3.16232,3162.3,3161.7,3.47924]
[1731983021432,3.16232,3162.3,3161.9,0.3164]
[1731983021794,3.16242,3162.2,3161.9,0.3164]
[1731983022111,3.16247,3162.1,3161.9,0.3164]
[1731983022322,3.16247,3162.1,3161.7,0.3164]